[Event "Kupreichik Memorial Open 2018"]
[Site "Minsk"]
[Date "2018.06.22"]
[Round "8"]
[White "Vashchilov, Sergey"]
[Black "Tsvetkova, Vladislava"]
[Result "1-0"]
[ECO "B12"]
[WhiteElo "2122"]
[BlackElo "1697"]
[Annotator "NA"]
[PlyCount "75"]
[EventDate "2018.06.21"]
[EventCountry "BLR"]
[SourceTitle "playchess.com"]
[Source "ChessBase"]
[SourceQuality "1"]
[TimeControl "900+10"]

1. e4 {[%emt 0:00:00]} c6 {[%emt 0:00:01]} 2. d4 {[%emt 0:00:00]} d5 {[%emt 0:00:01]} 3. e5 {[%emt 0:00:00]} Bf5 {[%emt 0:00:07]} 4. Ne2 {[%emt 0:00:00]} e6 {[%emt 0:00:11]} 5. Ng3 {[%emt 0:00:00]} Bg6 {[%emt 0:00:05]} 6. h4 {[%emt 0:00:00]} h5 {[%emt 0:00:02]} 7. Bd3 {[%emt 0:00:10]} Ne7 {[%emt 0:00:50]} 8. a3 {[%emt 0:00:49]} Nf5 {[%emt 0:00:31]} 9. Nxf5 {[%emt 0:00:30]} Bxf5 {[%emt 0:00:03]} 10. Bxf5 {[%emt 0:00:03]} exf5 {[%emt 0:00:02]} 11. Qd3 {[%emt 0:01:53]} g6 {[%emt 0:00:55]} 12. Be3 {[%emt 0:01:40]} Nd7 {[%emt 0:00:11]} 13. g3 {[%emt 0:00:26]} Bg7 {[%emt 0:02:12]} 14. Nd2 {[%emt 0:00:40]} Qa5 {[%emt 0:01:07]} 15. b4 {[%emt 0:01:01]} Qc7 {[%emt 0:00:06]} 16. Bf4 {[%emt 0:00:35]} Nf8 {[%emt 0:01:32]} 17. c4 {[%emt 0:00:13]} Ne6 {[%emt 0:01:03]} 18. Rc1 {[%emt 0:00:52]} Rd8 {[%emt 0:01:03]} 19. c5 {[%emt 0:00:50]} O-O {[%emt 0:02:25]} 20. Nf3 {[%emt 0:00:56]} Qe7 {[%emt 0:00:47]} 21. O-O {[%emt 0:00:24]} Nxf4 {[%emt 0:02:30]} 22. gxf4 {[%emt 0:00:01]} Bh6 {[%emt 0:00:06]} 23. Qd2 {[%emt 0:00:02]} Qe6 {[%emt 0:00:19]} 24. Kg2 {[%emt 0:00:16]} Rde8 {[%emt 0:00:24]} 25. Kg3 {[%emt 0:00:16]} Kg7 {[%emt 0:00:05]} 26. a4 {[%emt 0:00:01]} f6 {[%emt 0:00:53]} 27. Rb1 {[%emt 0:00:19]} fxe5 {[%emt 0:00:14]} 28. Nxe5 {[%emt 0:00:05]} Kh7 {[%emt 0:00:28]} 29. b5 {[%emt 0:00:08]} Bg7 {[%emt 0:00:09]} 30. bxc6 {[%emt 0:00:18]} bxc6 {[%emt 0:00:03]} 31. Rb7 {[%emt 0:00:05]} Rb8 {[%emt 0:00:48]} 32. Rfb1 {[%emt 0:00:12]} Rxb7 {[%emt 0:00:13]} 33. Rxb7 {[%emt 0:00:01]} Kg8 {[%emt 0:00:24]} 34. Rxa7 {[%emt 0:00:28]} Bxe5 {[%emt 0:00:06]} 35. dxe5 {[%emt 0:00:05]} Rb8 {[%emt 0:00:04]} 36. Qa5 {[%emt 0:00:13]} Rc8 {[%emt 0:00:29]} 37. Qb6 {[%emt 0:00:28]} d4 {[%emt 0:00:20]} 38. Qb7 {[%emt 0:00:05]} 1-0

[Event "Kupreichik Memorial Open 2018"]
[Site "Minsk"]
[Date "2018.06.22"]
[Round "8"]
[White "Kaliadzich, Maryia"]
[Black "Yurau, Maksim"]
[Result "1/2-1/2"]
[ECO "D10"]
[WhiteElo "2058"]
[BlackElo "1694"]
[Annotator "NA"]
[PlyCount "117"]
[EventDate "2018.06.21"]
[EventCountry "BLR"]
[SourceTitle "playchess.com"]
[Source "ChessBase"]
[SourceQuality "1"]
[TimeControl "900+10"]

1. d4 {[%emt 0:00:00]} d5 {[%emt 0:00:01]} 2. c4 {[%emt 0:00:00]} c6 {[%emt 0:00:02]} 3. e3 {[%emt 0:00:00]} e6 {[%emt 0:00:01]} 4. Nf3 {[%emt 0:00:00]} f5 {[%emt 0:00:03]} 5. g3 {[%emt 0:00:17]} Nf6 {[%emt 0:00:03]} 6. Bg2 {[%emt 0:00:02]} Be7 {[%emt 0:00:01]} 7. O-O {[%emt 0:00:03]} O-O {[%emt 0:00:03]} 8. b3 {[%emt 0:00:04]} Nbd7 {[%emt 0:00:18]} 9. a4 {[%emt 0:00:06]} a5 {[%emt 0:00:10]} 10. Ba3 {[%emt 0:00:04]} Ne4 {[%emt 0:00:24]} 11. Qc1 {[%emt 0:00:54]} Bb4 {[%emt 0:01:45]} 12. Bxb4 {[%emt 0:00:22]} axb4 {[%emt 0:00:02]} 13. Nfd2 {[%emt 0:03:44]} Ndf6 {[%emt 0:00:18]} 14. f3 {[%emt 0:02:25]} Nxd2 {[%emt 0:00:13]} 15. Nxd2 {[%emt 0:00:13]} Re8 {[%emt 0:03:36]} 16. f4 {[%emt 0:01:00]} b6 {[%emt 0:00:32]} 17. cxd5 {[%emt 0:02:05]} cxd5 {[%emt 0:00:42]} 18. Qb2 {[%emt 0:01:39]} Bb7 {[%emt 0:01:20]} 19. Rfe1 {[%emt 0:01:14]} Rc8 {[%emt 0:00:13]} 20. Rac1 {[%emt 0:00:24]} Qd7 {[%emt 0:01:56]} 21. Bf1 {[%emt 0:00:11]} Rxc1 {[%emt 0:00:28]} 22. Rxc1 {[%emt 0:00:02]} Rc8 {[%emt 0:00:10]} 23. Bb5 {[%emt 0:00:24]} Rxc1+ {[%emt 0:00:14]} 24. Qxc1 {[%emt 0:00:02]} Qc8 {[%emt 0:00:10]} 25. Qxc8+ {[%emt 0:00:15]} Bxc8 {[%emt 0:00:02]} 26. h3 {[%emt 0:00:21]} Ne4 {[%emt 0:01:07]} 27. Nxe4 {[%emt 0:00:09]} fxe4 {[%emt 0:00:14]} 28. g4 {[%emt 0:00:19]} g6 {[%emt 0:00:43]} 29. Kf2 {[%emt 0:00:10]} Kf7 {[%emt 0:00:05]} 30. Kg3 {[%emt 0:00:15]} h6 {[%emt 0:01:38]} 31. h4 {[%emt 0:01:13]} Kf8 {[%emt 0:02:39]} 32. g5 {[%emt 0:00:12]} h5 {[%emt 0:00:51]} 33. f5 {[%emt 0:00:22]} exf5 {[%emt 0:00:11]} 34. Bc6 {[%emt 0:00:26]} Be6 {[%emt 0:00:09]} 35. Kf4 {[%emt 0:00:01]} Ke7 {[%emt 0:00:08]} 36. Ke5 {[%emt 0:00:04]} Bf7 {[%emt 0:00:18]} 37. Bxd5 {[%emt 0:00:52]} Be8 {[%emt 0:00:16]} 38. Bc4 {[%emt 0:00:13]} Bd7 {[%emt 0:00:06]} 39. d5 {[%emt 0:00:06]} Be8 {[%emt 0:00:13]} 40. d6+ {[%emt 0:00:14]} Kd7 {[%emt 0:00:09]} 41. Bb5+ {[%emt 0:00:20]} Kd8 {[%emt 0:00:03]} 42. Bc4 {[%emt 0:00:28]} Kd7 {[%emt 0:00:08]} 43. Be6+ {[%emt 0:00:03]} Kc6 {[%emt 0:00:14]} 44. Bd5+ {[%emt 0:00:16]} Kd7 {[%emt 0:00:02]} 45. Bc4 {[%emt 0:00:02]} Kd8 {[%emt 0:00:11]} 46. Kf6 {[%emt 0:00:24]} Kd7 {[%emt 0:00:23]} 47. Bb5+ {[%emt 0:00:18]} Kd8 {[%emt 0:00:02]} 48. Bxe8 {[%emt 0:00:11]} Kxe8 {[%emt 0:00:02]} 49. Kxg6 {[%emt 0:00:04]} f4 {[%emt 0:00:09]} 50. Kxh5 {[%emt 0:00:34]} fxe3 {[%emt 0:00:19]} 51. g6 {[%emt 0:00:01]} e2 {[%emt 0:00:01]} 52. g7 {[%emt 0:00:02]} Kf7 {[%emt 0:00:07]} 53. d7 {[%emt 0:00:06]} e1=Q {[%emt 0:00:10]} 54. g8=Q+ {[%emt 0:00:06]} Kxg8 {[%emt 0:00:06]} 55. d8=Q+ {[%emt 0:00:04]} Kf7 {[%emt 0:00:16]} 56. Qd5+ {[%emt 0:00:11]} Kf6 {[%emt 0:00:28]} 57. Qg5+ {[%emt 0:00:36]} Kf7 {[%emt 0:00:11]} 58. Qf5+ {[%emt 0:00:05]} Ke7 {[%emt 0:00:05]} 59. Qe5+ {[%emt 0:00:11]} 1/2-1/2

[Event "Kupreichik Memorial Open 2018"]
[Site "Minsk"]
[Date "2018.06.22"]
[Round "8"]
[White "Kalinin, Dmitry"]
[Black "Artsiomau, Stanislau"]
[Result "1-0"]
[ECO "A46"]
[WhiteElo "1995"]
[BlackElo "1954"]
[Annotator "NA"]
[PlyCount "142"]
[EventDate "2018.06.21"]
[EventCountry "BLR"]
[SourceTitle "playchess.com"]
[Source "ChessBase"]
[SourceQuality "1"]
[TimeControl "900+10"]

1. d4 {[%emt 0:00:00]} Nf6 {[%emt 0:00:00]} 2. Nf3 c5 3. c3 {[%emt 0:01:02]} g6 {[%emt 0:00:14]} 4. dxc5 {[%emt 0:00:03]} Bg7 {[%emt 0:00:16]} 5. Nbd2 {[%emt 0:00:31]} Na6 {[%emt 0:00:29]} 6. Nb3 {[%emt 0:00:08]} O-O {[%emt 0:00:31]} 7. h3 {[%emt 0:00:23]} Qc7 {[%emt 0:01:26]} 8. Be3 {[%emt 0:00:06]} e6 {[%emt 0:00:11]} 9. Bd4 {[%emt 0:00:58]} Re8 {[%emt 0:01:43]} 10. Be5 Qc6 11. Qd4 {[%emt 0:00:35]} Nh5 {[%emt 0:00:38]} 12. Bxg7 {[%emt 0:03:19]} Nxg7 {[%emt 0:00:03]} 13. e4 {[%emt 0:00:14]} e5 {[%emt 0:03:16]} 14. Nxe5 {[%emt 0:00:27]} Qf6 {[%emt 0:02:03]} 15. Ng4 {[%emt 0:00:57]} Qxd4 {[%emt 0:00:02]} 16. cxd4 {[%emt 0:00:01]} Rxe4+ {[%emt 0:00:20]} 17. Kd2 {[%emt 0:00:03]} Ne8 {[%emt 0:01:16]} 18. Bd3 {[%emt 0:04:05]} Re7 {[%emt 0:00:02]} 19. Rhe1 {[%emt 0:00:35]} Rxe1 {[%emt 0:00:11]} 20. Rxe1 Kf8 21. d5 {[%emt 0:01:11]} d6 {[%emt 0:00:20]} 22. cxd6 {[%emt 0:00:41]} Nxd6 {[%emt 0:00:01]} 23. Nf6 {[%emt 0:00:02]} Nb4 {[%emt 0:01:10]} 24. Kc3 {[%emt 0:00:56]} Nxd3 {[%emt 0:00:20]} 25. Kxd3 {[%emt 0:00:01]} Bf5+ {[%emt 0:00:01]} 26. Kd2 {[%emt 0:00:57]} Kg7 {[%emt 0:01:09]} 27. Ng4 {[%emt 0:00:12]} Nc4+ {[%emt 0:00:51]} 28. Kc3 {[%emt 0:00:51]} Rc8 {[%emt 0:00:21]} 29. Kd4 {[%emt 0:00:18]} Nxb2 {[%emt 0:01:33]} 30. Ne3 {[%emt 0:00:04]} Kf6 {[%emt 0:00:45]} 31. g4 {[%emt 0:00:21]} Bd7 {[%emt 0:00:00]} 32. Rb1 {[%emt 0:00:46]} Na4 {[%emt 0:00:06]} 33. Rc1 {[%emt 0:00:06]} Rxc1 {[%emt 0:00:44]} 34. Nxc1 {[%emt 0:00:01]} Ke7 {[%emt 0:00:13]} 35. Nd3 {[%emt 0:00:15]} f6 {[%emt 0:00:11]} 36. Nc4 {[%emt 0:00:21]} b6 {[%emt 0:00:31]} 37. Nf4 {[%emt 0:00:16]} Nc5 {[%emt 0:00:04]} 38. d6+ {[%emt 0:00:05]} Kf7 {[%emt 0:00:07]} 39. Kd5 {[%emt 0:00:03]} Ne6 {[%emt 0:00:20]} 40. Nd3 {[%emt 0:00:05]} h5 {[%emt 0:00:05]} 41. Ne3 {[%emt 0:00:22]} Ng5 {[%emt 0:00:14]} 42. h4 {[%emt 0:00:01]} Nf3 {[%emt 0:00:04]} 43. gxh5 {[%emt 0:00:23]} gxh5 {[%emt 0:00:01]} 44. Nf4 {[%emt 0:00:01]} Nxh4 {[%emt 0:00:16]} 45. Nxh5 {[%emt 0:00:02]} Ng6 {[%emt 0:00:10]} 46. a3 {[%emt 0:00:05]} Ne5 {[%emt 0:00:06]} 47. Nf4 {[%emt 0:00:23]} Bc6+ {[%emt 0:00:02]} 48. Kd4 {[%emt 0:00:06]} Nf3+ {[%emt 0:00:11]} 49. Kc4 {[%emt 0:00:05]} Ne5+ {[%emt 0:00:01]} 50. Kd4 {[%emt 0:00:07]} Nf3+ {[%emt 0:00:01]} 51. Kc3 {[%emt 0:00:03]} Ng5 {[%emt 0:00:03]} 52. Kd4 {[%emt 0:00:15]} Ne6+ {[%emt 0:00:54]} 53. Nxe6 {[%emt 0:00:22]} Kxe6 {[%emt 0:00:00]} 54. Ng4 {[%emt 0:00:17]} f5 {[%emt 0:00:15]} 55. Ne3 {[%emt 0:00:14]} Bd7 {[%emt 0:00:15]} 56. Nc4 {[%emt 0:00:05]} Bb5 {[%emt 0:00:03]} 57. Ne3 {[%emt 0:00:13]} Bc6 {[%emt 0:00:09]} 58. f4 {[%emt 0:00:19]} Be4 {[%emt 0:00:10]} 59. Nc4 {[%emt 0:00:02]} b5 {[%emt 0:00:10]} 60. Nd2 {[%emt 0:00:04]} Bc6 {[%emt 0:00:10]} 61. Kc5 {[%emt 0:00:01]} Bd7 {[%emt 0:00:10]} 62. Nb3 {[%emt 0:00:01]} a6 63. Nd4+ {[%emt 0:00:02]} Kf6 {[%emt 0:00:11]} 64. Nc6 {[%emt 0:00:01]} Ke6 {[%emt 0:00:04]} 65. Nb8 {[%emt 0:00:08]} Bc8 {[%emt 0:00:34]} 66. Kc6 {[%emt 0:00:09]} a5 {[%emt 0:00:00]} 67. d7 {[%emt 0:00:13]} Bxd7+ {[%emt 0:00:01]} 68. Nxd7 b4 69. axb4 {[%emt 0:00:05]} axb4 {[%emt 0:00:02]} 70. Nc5+ {[%emt 0:00:01]} Kf7 {[%emt 0:00:06]} 71. Kd5 {[%emt 0:00:01]} Kf6 {[%emt 0:00:02] Ke4} 1-0

[Event "Kupreichik Memorial Open 2018"]
[Site "Minsk"]
[Date "2018.06.22"]
[Round "8"]
[White "Svjatocho, Andrej"]
[Black "Zhukova, Natalia"]
[Result "1-0"]
[ECO "C45"]
[WhiteElo "1979"]
[BlackElo "2356"]
[Annotator "NA"]
[PlyCount "83"]
[EventDate "2018.06.21"]
[EventCountry "BLR"]
[SourceTitle "playchess.com"]
[Source "ChessBase"]
[SourceQuality "1"]
[TimeControl "900+10"]

1. e4 {[%emt 0:00:00]} e5 {[%emt 0:00:05]} 2. Nf3 {[%emt 0:00:00]} Nc6 {[%emt 0:00:02]} 3. d4 {[%emt 0:00:02]} exd4 {[%emt 0:00:03]} 4. Nxd4 {[%emt 0:00:02]} Nf6 {[%emt 0:00:03]} 5. Nxc6 {[%emt 0:00:03]} bxc6 {[%emt 0:00:02]} 6. e5 {[%emt 0:00:03]} Qe7 {[%emt 0:00:04]} 7. Qe2 {[%emt 0:00:02]} Nd5 {[%emt 0:00:02]} 8. c4 {[%emt 0:00:03]} Nb6 {[%emt 0:00:02]} 9. b3 {[%emt 0:00:43]} Qe6 {[%emt 0:00:25]} 10. g3 {[%emt 0:01:14]} a5 {[%emt 0:01:01]} 11. Nd2 {[%emt 0:01:30]} a4 {[%emt 0:03:16]} 12. Bb2 {[%emt 0:00:43]} Bb4 {[%emt 0:00:03]} 13. Bg2 {[%emt 0:03:05]} a3 {[%emt 0:00:16]} 14. Bd4 {[%emt 0:00:08]} c5 {[%emt 0:04:37]} 15. Be3 {[%emt 0:00:38]} Qxe5 {[%emt 0:00:39]} 16. O-O {[%emt 0:00:15]} Ra7 {[%emt 0:01:58]} 17. f4 {[%emt 0:01:26]} Qe7 {[%emt 0:00:03]} 18. f5 {[%emt 0:00:16]} f6 {[%emt 0:00:52]} 19. Rae1 {[%emt 0:01:51]} O-O {[%emt 0:00:08]} 20. Qd3 {[%emt 0:00:37]} Qf7 {[%emt 0:00:12]} 21. Re2 {[%emt 0:00:08]} Bb7 {[%emt 0:00:23]} 22. Bf4 {[%emt 0:01:19]} Bxg2 {[%emt 0:01:53]} 23. Kxg2 {[%emt 0:00:04]} d5 {[%emt 0:01:27]} 24. cxd5 {[%emt 0:00:13]} Nxd5 {[%emt 0:00:07]} 25. Nc4 {[%emt 0:00:26]} Rd8 {[%emt 0:00:35]} 26. Qf3 {[%emt 0:00:20]} c6 {[%emt 0:00:16]} 27. Re6 {[%emt 0:00:20]} Rad7 {[%emt 0:00:07]} 28. Rxc6 {[%emt 0:01:08]} Nxf4+ {[%emt 0:00:17]} 29. Qxf4 {[%emt 0:00:09]} Rd3 {[%emt 0:00:25]} 30. Re6 {[%emt 0:00:30]} Qh5 {[%emt 0:00:28]} 31. Rf3 {[%emt 0:00:47]} R3d4 {[%emt 0:00:09]} 32. Qe3 {[%emt 0:00:21]} h6 {[%emt 0:00:04]} 33. Rf2 {[%emt 0:00:23]} Kh7 {[%emt 0:00:03]} 34. Re4 {[%emt 0:00:15]} Rd3 {[%emt 0:00:14]} 35. Qe2 {[%emt 0:00:02]} Qf7 {[%emt 0:00:05]} 36. Re6 {[%emt 0:00:08]} R3d4 {[%emt 0:00:16]} 37. Qf3 {[%emt 0:00:05]} Qd7 {[%emt 0:00:06]} 38. Rfe2 {[%emt 0:00:06]} Rd1 {[%emt 0:00:05]} 39. Kh3 {[%emt 0:00:17]} Rd4 {[%emt 0:00:19]} 40. Qh5 {[%emt 0:00:18]} Rg8 {[%emt 0:00:12]} 41. Qg6+ {[%emt 0:00:29]} Kh8 {[%emt 0:00:01]} 42. Re8 {[%emt 0:00:17]} 1-0

[Event "Kupreichik Memorial Open 2018"]
[Site "Minsk"]
[Date "2018.06.22"]
[Round "8"]
[White "Ilyuchyk, Yana"]
[Black "Rakhmangulova, Anastasiya"]
[Result "1/2-1/2"]
[ECO "B33"]
[WhiteElo "1971"]
[BlackElo "2244"]
[Annotator "NA"]
[PlyCount "138"]
[EventDate "2018.06.21"]
[EventCountry "BLR"]
[SourceTitle "playchess.com"]
[Source "ChessBase"]
[SourceQuality "1"]
[TimeControl "900+10"]

1. e4 {[%emt 0:00:00]} c5 {[%emt 0:00:01]} 2. Nf3 {[%emt 0:00:00]} e6 {[%emt 0:00:01]} 3. d4 {[%emt 0:00:00]} cxd4 {[%emt 0:00:01]} 4. Nxd4 {[%emt 0:00:00]} Nf6 {[%emt 0:00:01]} 5. Nc3 {[%emt 0:00:03]} Nc6 {[%emt 0:00:01]} 6. Ndb5 {[%emt 0:00:07]} d6 {[%emt 0:00:03]} 7. Bf4 {[%emt 0:00:03]} e5 {[%emt 0:00:00]} 8. Bg5 {[%emt 0:00:03]} a6 {[%emt 0:00:01]} 9. Na3 {[%emt 0:00:02]} b5 {[%emt 0:00:01]} 10. Nd5 {[%emt 0:00:03]} Be7 {[%emt 0:00:01]} 11. Bxf6 Bxf6 {[%emt 0:00:01]} 12. c4 {[%emt 0:00:05]} b4 {[%emt 0:00:01]} 13. Nc2 {[%emt 0:00:01]} a5 {[%emt 0:00:05]} 14. Be2 {[%emt 0:00:03]} Bg5 {[%emt 0:00:13]} 15. O-O {[%emt 0:00:03]} O-O {[%emt 0:00:13]} 16. Qd3 {[%emt 0:00:06]} Be6 {[%emt 0:02:52]} 17. Rad1 {[%emt 0:00:09]} Ra7 {[%emt 0:01:17]} 18. Nde3 {[%emt 0:01:48]} Rd7 {[%emt 0:00:22]} 19. Bg4 {[%emt 0:00:24]} Bxe3 {[%emt 0:00:42]} 20. Nxe3 {[%emt 0:00:18]} Qg5 {[%emt 0:02:18]} 21. Bxe6 {[%emt 0:01:40]} fxe6 {[%emt 0:00:01]} 22. Nc2 {[%emt 0:00:12]} Ne7 {[%emt 0:03:32]} 23. Qh3 {[%emt 0:01:17]} Rf6 {[%emt 0:01:32]} 24. Ne3 {[%emt 0:02:27]} Ng6 {[%emt 0:02:47]} 25. Qg4 {[%emt 0:02:43]} Qxg4 {[%emt 0:00:25]} 26. Nxg4 {[%emt 0:00:01]} Rf8 {[%emt 0:00:21]} 27. Rd2 {[%emt 0:01:03]} Rc8 {[%emt 0:00:10]} 28. b3 {[%emt 0:00:04]} Kf7 {[%emt 0:00:06]} 29. g3 {[%emt 0:00:19]} Ke7 {[%emt 0:00:22]} 30. h4 {[%emt 0:00:09]} h5 {[%emt 0:00:19]} 31. Ne3 {[%emt 0:00:23]} a4 {[%emt 0:00:01]} 32. bxa4 {[%emt 0:00:52]} Ra7 {[%emt 0:00:03]} 33. Rb2 {[%emt 0:00:47]} Rxa4 {[%emt 0:00:04]} 34. Rfb1 {[%emt 0:00:02]} Nf8 {[%emt 0:00:18]} 35. Rxb4 Rxa2 {[%emt 0:00:01]} 36. Rb8 {[%emt 0:01:00]} Rxb8 {[%emt 0:00:21]} 37. Rxb8 {[%emt 0:00:02]} Nd7 {[%emt 0:00:01]} 38. Rc8 {[%emt 0:00:54]} Nc5 {[%emt 0:00:25]} 39. Rc7+ {[%emt 0:00:24]} Kf6 {[%emt 0:00:08]} 40. f3 {[%emt 0:00:19]} Re2 {[%emt 0:00:20]} 41. Ng2 {[%emt 0:00:55]} Rc2 {[%emt 0:01:35]} 42. Ne3 {[%emt 0:00:14]} Re2 {[%emt 0:00:01]} 43. Ng2 {[%emt 0:00:01]} Nb3 {[%emt 0:00:51]} 44. Kf1 {[%emt 0:01:01]} Nd4 {[%emt 0:00:12]} 45. Ne1 {[%emt 0:00:25]} Rd2 {[%emt 0:00:09]} 46. Rd7 {[%emt 0:00:25]} Nb3 {[%emt 0:00:10]} 47. Ng2 {[%emt 0:00:51]} Rd4 {[%emt 0:00:06]} 48. Ne3 {[%emt 0:00:14]} Nd2+ {[%emt 0:00:09]} 49. Ke2 {[%emt 0:00:01]} Nxc4 {[%emt 0:00:07]} 50. Nxc4 {[%emt 0:00:02]} Rxc4 {[%emt 0:00:01]} 51. Rxd6 {[%emt 0:00:01]} Rc2+ {[%emt 0:00:06]} 52. Kf1 {[%emt 0:00:15]} Rc1+ {[%emt 0:00:24]} 53. Ke2 {[%emt 0:00:26]} Rc2+ {[%emt 0:00:01]} 54. Rd2 {[%emt 0:00:08]} Rc3 {[%emt 0:00:01]} 55. Kf2 {[%emt 0:00:10]} Rc4 {[%emt 0:00:06]} 56. Ra2 {[%emt 0:00:03]} Rb4 {[%emt 0:00:05]} 57. Re2 {[%emt 0:00:26]} Rb1 {[%emt 0:00:21]} 58. g4 {[%emt 0:00:12]} hxg4 {[%emt 0:00:25]} 59. fxg4 {[%emt 0:00:01]} Rh1 {[%emt 0:00:12]} 60. Kg3 {[%emt 0:00:07]} Rg1+ {[%emt 0:00:01]} 61. Rg2 {[%emt 0:00:07]} Re1 {[%emt 0:00:01]} 62. Kf3 {[%emt 0:00:15]} Rh1 {[%emt 0:00:01]} 63. g5+ {[%emt 0:00:06]} Kg6 {[%emt 0:00:02]} 64. Kg4 {[%emt 0:00:02]} Re1 {[%emt 0:00:11]} 65. h5+ {[%emt 0:00:24]} Kh7 {[%emt 0:00:00]} 66. Kf3 {[%emt 0:00:02]} Rh1 {[%emt 0:00:02]} 67. Kg4 {[%emt 0:00:07]} Re1 {[%emt 0:00:01]} 68. Kf3 {[%emt 0:00:05]} Rh1 {[%emt 0:00:01]} 69. Kg4 {[%emt 0:00:06]} Re1 {[%emt 0:00:01]} 1/2-1/2

[Event "Kupreichik Memorial Open 2018"]
[Site "Minsk"]
[Date "2018.06.22"]
[Round "8"]
[White "Naumovich, Yaroslav"]
[Black "Shaban, Alena"]
[Result "1-0"]
[ECO "D02"]
[WhiteElo "1959"]
[BlackElo "2027"]
[Annotator "NA"]
[PlyCount "95"]
[EventDate "2018.06.21"]
[EventCountry "BLR"]
[SourceTitle "playchess.com"]
[Source "ChessBase"]
[SourceQuality "1"]
[TimeControl "900+10"]

1. Nf3 {[%emt 0:00:00]} d5 {[%emt 0:00:08]} 2. d4 {[%emt 0:00:00]} Nf6 {[%emt 0:00:06]} 3. Bf4 {[%emt 0:00:00]} c5 {[%emt 0:00:15]} 4. e3 {[%emt 0:00:00]} Nc6 {[%emt 0:00:29]} 5. c3 {[%emt 0:00:02]} Qb6 {[%emt 0:00:11]} 6. Qc1 {[%emt 0:00:01]} Bf5 {[%emt 0:00:38]} 7. Be2 {[%emt 0:00:03]} c4 {[%emt 0:00:23]} 8. O-O {[%emt 0:00:04]} e6 {[%emt 0:00:03]} 9. Nbd2 {[%emt 0:00:02]} Be7 {[%emt 0:00:09]} 10. b3 {[%emt 0:00:01]} cxb3 {[%emt 0:00:22]} 11. axb3 {[%emt 0:00:02]} O-O {[%emt 0:00:02]} 12. Ne5 {[%emt 0:00:12]} Rac8 {[%emt 0:01:34]} 13. Qb2 {[%emt 0:00:09]} Ne4 {[%emt 0:00:14]} 14. Nxe4 {[%emt 0:00:18]} Bxe4 {[%emt 0:00:04]} 15. Nd7 {[%emt 0:00:02]} Qd8 {[%emt 0:00:20]} 16. Nxf8 {[%emt 0:00:03]} Bxf8 {[%emt 0:00:12]} 17. Rfc1 {[%emt 0:00:35]} g5 {[%emt 0:00:59]} 18. Bg3 {[%emt 0:00:06]} f5 {[%emt 0:00:06]} 19. f3 {[%emt 0:00:14]} f4 {[%emt 0:00:02]} 20. fxe4 {[%emt 0:01:08]} fxg3 {[%emt 0:00:01]} 21. hxg3 {[%emt 0:00:02]} dxe4 {[%emt 0:00:57]} 22. Bg4 {[%emt 0:00:01]} Qf6 {[%emt 0:00:33]} 23. Rf1 {[%emt 0:00:08]} Qg6 {[%emt 0:00:01]} 24. d5 {[%emt 0:00:03]} Nd8 {[%emt 0:00:21]} 25. dxe6 {[%emt 0:00:25]} Nxe6 {[%emt 0:00:34]} 26. Bf5 {[%emt 0:00:01]} Qh6 {[%emt 0:00:32]} 27. Bxe4 {[%emt 0:00:09]} Bc5 {[%emt 0:00:42]} 28. Qf2 {[%emt 0:00:14]} Rf8 {[%emt 0:00:44]} 29. Qe2 {[%emt 0:00:01]} Rb8 {[%emt 0:02:37]} 30. Bd5 {[%emt 0:00:05]} Kh8 {[%emt 0:01:44]} 31. b4 {[%emt 0:00:03]} Bb6 {[%emt 0:00:42]} 32. c4 {[%emt 0:00:01]} Bc7 {[%emt 0:00:28]} 33. Qb2+ {[%emt 0:00:03]} Ng7 {[%emt 0:00:05]} 34. Qf6 {[%emt 0:00:09]} Qxf6 {[%emt 0:00:38]} 35. Rxf6 {[%emt 0:00:01]} Be5 {[%emt 0:00:06]} 36. Raf1 {[%emt 0:00:18]} Bxf6 {[%emt 0:00:27]} 37. Rxf6 {[%emt 0:00:02]} b6 {[%emt 0:00:41]} 38. b5 {[%emt 0:00:16]} Nh5 {[%emt 0:00:38]} 39. Rf7 {[%emt 0:00:43]} Nxg3 {[%emt 0:00:14]} 40. Rxa7 {[%emt 0:00:07]} Nf5 {[%emt 0:00:29]} 41. e4 {[%emt 0:00:08]} Nd4 {[%emt 0:01:02]} 42. Rf7 {[%emt 0:00:41]} Rd8 {[%emt 0:00:46]} 43. Rf6 {[%emt 0:00:04]} Rb8 {[%emt 0:00:01]} 44. e5 {[%emt 0:00:18]} Kg7 {[%emt 0:00:01]} 45. Rf7+ {[%emt 0:00:07]} Kg6 {[%emt 0:00:02]} 46. Rd7 {[%emt 0:00:30]} h5 {[%emt 0:00:13]} 47. Be4+ {[%emt 0:00:07]} Nf5 {[%emt 0:00:15]} 48. Rd6+ {[%emt 0:00:03]} 1-0

[Event "Kupreichik Memorial Open 2018"]
[Site "Minsk"]
[Date "2018.06.22"]
[Round "8"]
[White "Uzlavataya, Anhelina"]
[Black "Nomin-Erdene, Davaademberel"]
[Result "0-1"]
[ECO "A04"]
[WhiteElo "1925"]
[BlackElo "2312"]
[Annotator "NA"]
[PlyCount "94"]
[EventDate "2018.06.21"]
[EventCountry "BLR"]
[SourceTitle "playchess.com"]
[Source "ChessBase"]
[SourceQuality "1"]
[TimeControl "900+10"]

1. Nf3 {[%emt 0:00:00]} f5 {[%emt 0:00:01]} 2. d4 {[%emt 0:00:16]} Nf6 {[%emt 0:00:27]} 3. c4 {[%emt 0:00:17]} g6 {[%emt 0:00:11]} 4. Nc3 {[%emt 0:00:05]} Bg7 {[%emt 0:00:04]} 5. g3 {[%emt 0:00:01]} d6 {[%emt 0:00:09]} 6. Bg2 {[%emt 0:00:02]} O-O {[%emt 0:00:01]} 7. O-O {[%emt 0:00:04]} Qe8 {[%emt 0:00:11]} 8. d5 {[%emt 0:00:16]} Na6 {[%emt 0:00:12]} 9. Nd4 {[%emt 0:00:10]} Bd7 {[%emt 0:00:06]} 10. Rb1 {[%emt 0:04:32]} c6 {[%emt 0:00:28]} 11. b3 {[%emt 0:01:02]} Nc7 {[%emt 0:00:41]} 12. Bb2 {[%emt 0:00:19]} Rd8 {[%emt 0:01:29]} 13. dxc6 {[%emt 0:01:11]} bxc6 {[%emt 0:00:08]} 14. e4 {[%emt 0:01:03]} fxe4 {[%emt 0:01:24]} 15. Nxe4 {[%emt 0:00:01]} Nxe4 {[%emt 0:00:02]} 16. Bxe4 {[%emt 0:00:01]} e5 {[%emt 0:00:04]} 17. Nc2 {[%emt 0:00:34]} Bh3 {[%emt 0:00:19]} 18. Re1 {[%emt 0:01:18]} Qf7 {[%emt 0:00:54]} 19. Qe2 {[%emt 0:00:13]} d5 {[%emt 0:00:12]} 20. Bh1 {[%emt 0:01:26]} d4 {[%emt 0:02:31]} 21. Nb4 {[%emt 0:00:02]} d3 {[%emt 0:00:21]} 22. Qd2 {[%emt 0:02:17]} Bh6 {[%emt 0:05:09]} 23. f4 {[%emt 0:00:00]} exf4 {[%emt 0:00:01]} 24. Qc3 {[%emt 0:00:01]} Bg7 {[%emt 0:00:09]} 25. Qxg7+ {[%emt 0:00:02]} Qxg7 {[%emt 0:00:01]} 26. Bxg7 {[%emt 0:00:01]} Kxg7 {[%emt 0:00:11]} 27. Nxc6 {[%emt 0:01:22]} Rde8 {[%emt 0:02:43]} 28. gxf4 {[%emt 0:00:39]} d2 {[%emt 0:00:11]} 29. Rxe8 {[%emt 0:00:36]} Rxe8 {[%emt 0:00:01]} 30. Ne5 {[%emt 0:00:01]} Rxe5 {[%emt 0:00:23]} 31. fxe5 {[%emt 0:00:38]} Bg4 {[%emt 0:00:01]} 32. Kf2 {[%emt 0:00:26]} d1=Q {[%emt 0:00:02]} 33. Rxd1 {[%emt 0:00:01]} Bxd1 {[%emt 0:00:02]} 34. Ke3 {[%emt 0:00:07]} Kf7 {[%emt 0:01:36]} 35. Kd4 {[%emt 0:00:01]} Ke7 {[%emt 0:00:11]} 36. Bg2 {[%emt 0:00:13]} Bg4 {[%emt 0:00:17]} 37. Kc5 {[%emt 0:00:23]} Bd7 {[%emt 0:00:01]} 38. a4 {[%emt 0:00:26]} Na6+ {[%emt 0:00:19]} 39. Kd4 {[%emt 0:00:04]} g5 {[%emt 0:00:02]} 40. c5 {[%emt 0:00:17]} Nb4 {[%emt 0:00:12]} 41. Kc4 {[%emt 0:00:07]} a5 {[%emt 0:00:08]} 42. Kd4 {[%emt 0:00:43]} h5 {[%emt 0:00:04]} 43. Kc4 {[%emt 0:00:27]} Ke6 {[%emt 0:00:09]} 44. Bh3+ {[%emt 0:00:19]} g4 {[%emt 0:00:02]} 45. Bg2 {[%emt 0:00:03]} Kxe5 {[%emt 0:00:03]} 46. c6 {[%emt 0:00:11]} Bxc6 {[%emt 0:00:30]} 47. Bxc6 {[%emt 0:00:06]} Nxc6 {[%emt 0:00:01] Kd4+} 0-1